bitfinex/quotes_BTCUSD_20230404
["timestamp","ask_amount","ask_price","bid_price","bid_amount"]
[1680642570102,0.34975327,28237.0,28234.0,0.33311439]
[1680642570333,0.34975327,28237.0,28234.0,0.33211439]
[1680642570559,0.34975327,28237.0,28234.0,0.33311439]
[1680642571143,0.0003,28237.0,28235.0,0.39266903]
[1680642571371,0.32966101,28238.0,28235.0,0.39272903]
[1680642571593,0.32996101,28238.0,28235.0,0.39272903]
[1680642572078,0.32819101,28238.0,28235.0,0.76612903]
[1680642572315,0.3567117,28236.0,28235.0,0.37346]
[1680642572556,0.3792637,28236.0,28235.0,6e-05]
[1680642572797,0.3792637,28236.0,28234.0,0.001]
[1680642573035,0.022183,28235.0,28233.0,0.45449078]
[1680642573270,0.3587817,28236.0,28233.0,0.80920134]
[1680642573470,0.00177,28235.0,28233.0,0.82789078]
[1680642573697,0.38221673,28235.0,28233.0,6e-05]
[1680642573911,0.38251673,28235.0,28232.0,0.77927789]
[1680642574806,0.38251673,28235.0,28232.0,0.40587789]
[1680642576083,0.00814561,28236.0,28233.0,0.36280951]
[1680642576308,0.53997239,28248.0,28233.0,0.36280951]
[1680642576309,0.04912433,28238.0,28234.0,0.410633]
[1680642576536,0.04912433,28238.0,28236.0,0.3734]
[1680642576763,0.00655331,28242.0,28237.0,0.72811056]
[1680642576988,0.022895,28241.0,28239.0,0.3734]
[1680642577212,0.00177,28241.0,28239.0,0.51529681]
[1680642577447,0.00177,28241.0,28239.0,0.3734]
[1680642577889,0.00177,28241.0,28239.0,0.3744]
[1680642578287,0.00177,28241.0,28240.0,0.44654124]
[1680642579059,0.02238,28241.0,28239.0,0.00118]
[1680642579289,0.00177,28241.0,28238.0,0.34262922]
[1680642579507,0.00177,28241.0,28240.0,0.001]
[1680642579728,0.022641,28241.0,28240.0,0.001]
[1680642579948,0.022641,28241.0,28238.0,0.34262922]
[1680642580173,0.00177,28241.0,28239.0,0.001]
[1680642580387,0.00177,28241.0,28238.0,0.34262922]
[1680642580642,0.00177,28241.0,28240.0,0.001]
[1680642580929,0.022885,28241.0,28240.0,0.001]
[1680642581761,0.022885,28241.0,28238.0,0.34262922]
[1680642581981,0.00177,28241.0,28238.0,0.71602922]
[1680642582439,0.00177,28241.0,28240.0,0.001]
[1680642582675,0.00177,28241.0,28239.0,0.43057833]
[1680642582894,0.00177,28241.0,28239.0,0.43051833]
[1680642583352,0.00177,28241.0,28239.0,0.43057833]
[1680642583826,0.00177,28241.0,28239.0,0.43157833]
[1680642584731,0.00177,28241.0,28239.0,0.43145833]
[1680642585728,0.00177,28241.0,28239.0,0.43151833]
[1680642585945,0.00177,28241.0,28239.0,0.43145833]
[1680642587313,0.00177,28241.0,28240.0,0.44203172]
[1680642587999,0.00832331,28242.0,28240.0,0.44203172]
[1680642588238,0.00832331,28242.0,28240.0,0.44303172]
[1680642588991,0.00832331,28242.0,28240.0,0.44203172]
[1680642589195,0.00832331,28242.0,28240.0,0.44303172]
[1680642591150,0.021653,28241.0,28240.0,0.44303172]
[1680642591299,0.00177,28241.0,28240.0,0.44303172]
[1680642591512,0.00655331,28242.0,28240.0,0.44303172]
[1680642591727,0.020982,28241.0,28240.0,0.44303172]
[1680642591946,0.020982,28241.0,28240.0,0.44203172]
[1680642592170,0.020982,28241.0,28240.0,0.44303172]
[1680642593887,0.00774177,28241.0,28240.0,0.001]
[1680642595398,0.00774177,28241.0,28239.0,0.42751347]
[1680642596525,0.00597177,28241.0,28240.0,0.001]
[1680642596735,0.00832331,28242.0,28239.0,0.42751347]
[1680642596968,0.0160842,28242.0,28239.0,0.42751347]
[1680642597227,0.0160842,28242.0,28239.0,0.42851347]
[1680642597423,0.0160842,28242.0,28239.0,0.42751347]
[1680642597872,0.0160842,28242.0,28239.0,0.42851347]
[1680642600697,0.0160842,28242.0,28239.0,0.26684187]
[1680642600909,0.0160842,28242.0,28239.0,0.26666187]
[1680642604853,0.0160842,28242.0,28239.0,0.26566187]
[1680642605070,0.0160842,28242.0,28239.0,0.27366187]
[1680642605510,0.0160842,28242.0,28239.0,0.26566187]
[1680642605952,0.0160842,28242.0,28239.0,0.27366187]
[1680642606165,0.0160842,28242.0,28239.0,0.26566187]
[1680642606420,0.020911,28241.0,28239.0,0.27366187]
[1680642606638,0.020911,28241.0,28239.0,0.26566187]
[1680642606846,0.0160842,28242.0,28239.0,0.27366187]
[1680642607593,0.021278,28241.0,28239.0,0.26566187]
[1680642607824,0.0160842,28242.0,28239.0,0.27366187]
[1680642608035,0.0160842,28242.0,28239.0,0.26566187]
[1680642608465,0.019888,28241.0,28239.0,0.26566187]
[1680642608680,0.0160842,28242.0,28239.0,0.27366187]
[1680642609313,0.0160842,28242.0,28239.0,0.26566187]
[1680642609526,0.021164,28241.0,28239.0,0.26766187]
[1680642610218,0.0160842,28242.0,28239.0,0.26766187]
[1680642610385,0.020445,28241.0,28239.0,0.26566187]
[1680642610600,0.020445,28241.0,28240.0,0.4674988]
[1680642610820,0.0146142,28242.0,28240.0,0.4674988]
[1680642611040,0.0160842,28242.0,28240.0,0.4674988]
[1680642611717,0.0160842,28242.0,28240.0,0.4694988]
[1680642611923,0.0160842,28242.0,28240.0,0.4674988]
[1680642612153,0.0160842,28242.0,28240.0,0.4694988]
[1680642612795,0.00655331,28242.0,28241.0,0.42753769]
[1680642613016,0.00685331,28242.0,28241.0,0.42753769]
[1680642615789,0.00685331,28242.0,28239.0,0.00018]
[1680642616014,0.00655331,28242.0,28240.0,0.35060643]
[1680642616222,0.00685331,28242.0,28240.0,0.35060643]
[1680642617633,0.00685331,28242.0,28240.0,0.35260643]
[1680642619302,0.00655331,28242.0,28240.0,0.35260643]
[1680642619532,0.00655331,28242.0,28240.0,0.35060643]
[1680642619749,0.00655331,28242.0,28240.0,0.36560643]
[1680642620792,0.13624213,28242.0,28240.0,0.36560643]
[1680642620995,0.13654213,28242.0,28240.0,0.36560643]
[1680642621483,0.13831213,28242.0,28240.0,0.36560643]
[1680642621739,0.13831213,28242.0,28240.0,0.015]
[1680642621966,0.13624213,28242.0,28240.0,0.015]
[1680642622185,0.22309677,28242.0,28240.0,0.015]
[1680642622417,0.13021236,28241.0,28238.0,0.00018]
[1680642622640,0.13021236,28241.0,28237.0,0.16992]
[1680642622641,0.02166,28240.0,28237.0,0.16992]
[1680642622828,0.15240538,28239.0,28237.0,0.16998]
[1680642623105,0.15417538,28239.0,28237.0,0.1701]
[1680642623809,0.15417538,28239.0,28237.0,0.1921]
[1680642624032,0.15417538,28239.0,28237.0,0.1701]
[1680642624250,0.15417538,28239.0,28237.0,0.1851]
[1680642624443,0.016308,28238.0,28237.0,0.18492]
[1680642624674,0.41348564,28238.0,28237.0,0.015]
[1680642625143,0.41378564,28238.0,28237.0,0.015]
[1680642625367,0.41378564,28238.0,28235.0,0.32947884]
[1680642625613,0.019706,28237.0,28235.0,0.32947884]
[1680642625839,0.00177,28236.0,28235.0,0.32947884]
[1680642626061,0.021091,28236.0,28235.0,0.32947884]
[1680642626723,0.019321,28236.0,28235.0,0.32835714]
[1680642626940,0.022308,28237.0,28235.0,0.32835714]
[1680642627158,0.022308,28237.0,28235.0,0.33035714]
[1680642627728,0.020538,28237.0,28235.0,0.33035714]
[1680642627934,0.022308,28237.0,28235.0,0.33035714]
[1680642628138,0.022308,28237.0,28235.0,0.32835714]
[1680642628338,0.022308,28237.0,28235.0,0.33035714]
[1680642628725,0.020538,28237.0,28235.0,0.33035714]
[1680642629162,0.020538,28237.0,28236.0,0.39283389]
[1680642629421,0.020838,28237.0,28236.0,0.39283389]
[1680642629852,0.0003,28237.0,28236.0,0.39283389]
[1680642630076,0.0003,28238.0,28236.0,0.39283389]
[1680642630306,0.00177,28238.0,28234.0,0.00018]
[1680642630527,0.15478365,28237.0,28234.0,0.3582846]
[1680642630747,0.15655365,28237.0,28234.0,0.3582846]
[1680642631175,0.15755365,28237.0,28234.0,0.3582846]
[1680642631392,0.04712254,28236.0,28234.0,0.3582846]
[1680642631620,0.04712254,28236.0,28234.0,0.3672846]
[1680642631860,0.04712254,28236.0,28234.0,0.3582846]
[1680642632076,0.04712254,28236.0,28234.0,0.3862846]
[1680642632293,0.04712254,28236.0,28234.0,0.3582846]
[1680642632498,0.04712254,28236.0,28234.0,0.3672846]
[1680642633208,0.04712254,28236.0,28235.0,0.41059688]
[1680642634102,0.04712254,28236.0,28235.0,0.41259688]
[1680642637073,0.04889254,28236.0,28235.0,0.41265688]
[1680642637293,0.06915054,28236.0,28235.0,0.41065688]
[1680642637487,0.06915054,28236.0,28235.0,0.41259688]
[1680642637901,0.06915054,28236.0,28235.0,0.41059688]
[1680642638119,0.06915054,28236.0,28235.0,0.41259688]
[1680642638965,0.04889254,28236.0,28235.0,0.41259688]
[1680642643025,0.04882431,28236.0,28235.0,0.41265688]
[1680642643707,0.04705431,28236.0,28235.0,0.41891892]
[1680642643903,0.04705431,28236.0,28235.0,0.44059292]
[1680642644640,0.46156858,28240.0,28235.0,0.44059292]
[1680642644867,0.46156858,28240.0,28236.0,0.14189681]
[1680642645325,0.46156858,28240.0,28235.0,0.39933092]
[1680642645528,0.04175525,28239.0,28236.0,0.16992]
[1680642646291,0.04175525,28239.0,28237.0,0.41715411]
[1680642646527,0.04175525,28239.0,28237.0,0.41721411]
[1680642647722,0.17062243,28239.0,28237.0,0.41721411]
[1680642647944,0.17062243,28239.0,28237.0,6e-05]
[1680642648162,0.17062243,28239.0,28236.0,0.19192]
[1680642648446,0.17062243,28239.0,28236.0,0.16992]
[1680642648672,0.17162243,28239.0,28237.0,0.001]
[1680642648953,0.17062243,28239.0,28236.0,0.16992]
[1680642649229,0.17062243,28239.0,28236.0,0.19192]
[1680642649488,0.17062243,28239.0,28236.0,0.16992]
[1680642649784,0.17062243,28239.0,28237.0,0.015]
[1680642650016,0.17062243,28239.0,28236.0,0.16992]
[1680642650246,0.17062243,28239.0,28236.0,0.19192]
[1680642652040,0.17062243,28239.0,28236.0,0.63370871]
[1680642652260,0.17062243,28239.0,28236.0,0.63376871]
[1680642652725,0.17716539,28238.0,28236.0,0.02206]
[1680642652957,0.020472,28237.0,28236.0,0.022]
[1680642653406,0.020472,28237.0,28236.0,0.19192]
[1680642653634,0.020472,28237.0,28236.0,0.022]
[1680642653861,0.020472,28237.0,28235.0,0.16992]
[1680642654091,0.021472,28237.0,28235.0,0.16992]
[1680642654326,0.020472,28237.0,28235.0,0.16992]
[1680642654773,0.020472,28237.0,28236.0,0.002]
[1680642655013,0.022069,28237.0,28235.0,0.16992]
[1680642655243,0.022069,28237.0,28235.0,0.17892]
[1680642655464,0.18440005,28237.0,28235.0,0.16992]
[1680642655688,0.16410105,28237.0,28236.0,0.16992]
[1680642655919,0.18308505,28237.0,28236.0,0.16992]
[1680642656393,0.18308505,28237.0,28235.0,0.1701]
[1680642656651,0.16539692,28236.0,28235.0,0.16992]
[1680642656876,0.16716692,28236.0,28235.0,0.16992]
[1680642657110,0.16930392,28236.0,28235.0,0.16992]
[1680642657342,0.14783292,28236.0,28235.0,0.17892]
[1680642657583,0.16878492,28236.0,28235.0,0.009]
[1680642657814,0.00177,28236.0,28234.0,0.41786815]
[1680642658050,0.00177,28236.0,28235.0,0.002]
[1680642658257,0.00177,28236.0,28234.0,0.41786815]
[1680642658484,0.00177,28236.0,28235.0,0.002]
[1680642658710,0.020988,28236.0,28234.0,0.41786815]
[1680642658825,0.020988,28236.0,28234.0,0.42686815]
[1680642659708,0.00177,28236.0,28234.0,0.42686815]
[1680642659949,0.02127,28236.0,28234.0,0.41786815]
[1680642660172,0.02127,28236.0,28235.0,0.002]
[1680642660390,0.02127,28236.0,28234.0,0.41786815]
[1680642660597,0.02127,28236.0,28234.0,0.42686815]
[1680642661022,0.02127,28236.0,28234.0,0.41786815]
[1680642661268,0.02127,28236.0,28235.0,0.002]
[1680642661468,0.02127,28236.0,28234.0,0.41786815]
[1680642661684,0.02127,28236.0,28234.0,0.42686815]
[1680642661891,0.02127,28236.0,28234.0,0.41786815]
[1680642663102,0.02127,28236.0,28235.0,0.002]
[1680642663325,0.02127,28236.0,28234.0,0.41786815]
[1680642663557,0.02127,28236.0,28234.0,0.42686815]
[1680642663779,0.02127,28236.0,28234.0,0.41786815]
[1680642664014,0.12002602,28235.0,28234.0,6e-05]
[1680642664238,0.14540402,28235.0,28231.0,0.33793654]
[1680642664455,0.12533702,28235.0,28234.0,0.002]
[1680642664688,0.14525102,28235.0,28232.0,0.43115926]
[1680642664910,0.019138,28234.0,28232.0,0.43121926]
[1680642665168,0.00177,28233.0,28232.0,0.43121926]
[1680642665389,0.021815,28233.0,28232.0,0.43121926]
[1680642665819,0.00177,28233.0,28232.0,0.43121926]
[1680642666519,0.00277,28233.0,28232.0,0.43121926]
[1680642667340,0.00177,28233.0,28232.0,0.43121926]
[1680642667561,0.00277,28233.0,28232.0,0.43121926]
[1680642668558,0.022317,28233.0,28232.0,0.43121926]
[1680642668770,0.00277,28233.0,28232.0,0.43121926]
[1680642669848,0.02262,28233.0,28232.0,0.43121926]
[1680642670055,0.00277,28233.0,28232.0,0.43121926]
[1680642673572,0.001,28233.0,28232.0,0.43121926]
[1680642674022,0.00277,28233.0,28232.0,0.43121926]
[1680642674235,0.001,28233.0,28232.0,0.43121926]
[1680642676026,0.00277,28233.0,28232.0,0.43121926]
[1680642676440,0.001,28233.0,28232.0,0.43121926]
[1680642676811,0.021576,28234.0,28232.0,0.43121926]
[1680642677012,0.021576,28234.0,28232.0,0.44021926]
[1680642677418,0.019806,28234.0,28232.0,0.44021926]
[1680642677623,0.021576,28234.0,28232.0,0.44021926]
[1680642677890,0.0003,28237.0,28233.0,0.89803056]
[1680642678096,0.21951018,28240.0,28235.0,0.413007]
[1680642678097,0.0003,28238.0,28235.0,0.413007]
[1680642678300,0.1897383,28240.0,28236.0,0.15]
[1680642678512,0.1897383,28240.0,28237.0,0.14189681]
[1680642678928,0.13925364,28239.0,28236.0,0.00018]
[1680642679158,0.13925364,28239.0,28235.0,0.37346]
[1680642679296,0.13925364,28239.0,28235.0,0.54338]
[1680642679507,0.13925364,28239.0,28235.0,0.54438]
[1680642679508,0.001,28238.0,28235.0,0.54438]
[1680642679703,0.13925364,28239.0,28235.0,0.54338]
[1680642679887,0.14025364,28239.0,28236.0,0.001]
[1680642680788,0.13925364,28239.0,28236.0,0.3445839]
[1680642681007,0.13925364,28239.0,28236.0,0.3446439]
[1680642681432,0.13925364,28239.0,28236.0,0.3666439]
[1680642682267,0.13925364,28239.0,28236.0,0.3446439]
[1680642682525,0.13925364,28239.0,28236.0,0.3666439]
[1680642682746,0.14102364,28239.0,28236.0,0.3666439]
[1680642684291,0.15845459,28238.0,28236.0,0.3666439]
[1680642684505,0.16022459,28238.0,28236.0,0.02206]
[1680642684730,0.019838,28237.0,28236.0,0.022]
[1680642684950,0.025149,28237.0,28236.0,0.022]
[1680642685189,0.025149,28237.0,28234.0,0.16992]
[1680642685407,0.019019,28236.0,28234.0,0.16992]
[1680642685655,0.020789,28236.0,28234.0,0.58970179]
[1680642685889,0.00177,28236.0,28234.0,0.58976179]
[1680642686077,0.00177,28236.0,28235.0,0.16992]
[1680642687027,0.00177,28236.0,28235.0,0.17892]
[1680642687782,0.00177,28236.0,28235.0,0.16992]
[1680642688003,0.00177,28236.0,28235.0,0.17192]
[1680642688693,0.12348892,28237.0,28235.0,0.17192]
[1680642688909,0.00177,28236.0,28235.0,0.17192]
[1680642689370,0.15705167,28236.0,28235.0,0.002]
[1680642690317,0.15705167,28236.0,28233.0,0.45101052]
[1680642690519,0.13818667,28236.0,28235.0,0.001]
[1680642690740,0.15772567,28236.0,28235.0,0.001]
[1680642691234,0.15672567,28236.0,28233.0,0.45101052]
[1680642691465,0.019524,28235.0,28233.0,0.45101052]
[1680642691704,0.00177,28234.0,28233.0,0.45101052]
[1680642691932,0.021604,28234.0,28233.0,0.45101052]
[1680642692614,0.021604,28234.0,28233.0,0.45301052]
[1680642692850,0.00177,28234.0,28233.0,0.45301052]
[1680642694952,0.00177,28234.0,28233.0,0.45101052]
[1680642695167,0.00277,28234.0,28233.0,0.45101052]
[1680642696957,0.00177,28234.0,28233.0,0.45101052]
[1680642697195,0.02142,28234.0,28233.0,0.45101052]
[1680642697472,0.02243,28234.0,28233.0,6e-05]
[1680642697699,0.02243,28234.0,28231.0,0.50842624]
[1680642697937,0.02243,28234.0,28231.0,0.33856624]
[1680642698179,0.02343,28234.0,28232.0,0.34882356]
[1680642698411,0.02343,28234.0,28232.0,0.34888356]
[1680642698641,0.1933513,28234.0,28232.0,0.34888356]
[1680642698871,0.02005,28233.0,28232.0,0.34888356]
[1680642699069,0.02182,28233.0,28232.0,0.35088356]
[1680642699837,0.02182,28233.0,28232.0,0.34888356]
[1680642700066,0.00177,28233.0,28232.0,0.35088356]
[1680642700271,0.021508,28233.0,28232.0,0.35088356]
[1680642700862,0.021508,28233.0,28232.0,0.34888356]
[1680642701292,0.023278,28233.0,28232.0,0.35088356]
[1680642702162,0.023278,28233.0,28232.0,0.00206]
[1680642702379,0.023278,28233.0,28232.0,0.002]
[1680642702799,0.023278,28233.0,28231.0,0.42286379]
[1680642702996,0.00177,28233.0,28231.0,0.42286379]
[1680642703214,0.021071,28233.0,28231.0,0.42286379]
[1680642703438,0.019068,28232.0,28231.0,0.42286379]
[1680642703725,0.001771,28232.0,28231.0,0.42286379]
[1680642704376,0.001771,28232.0,28231.0,0.42486379]
[1680642704607,0.14826641,28232.0,28231.0,0.002]
[1680642704835,0.16693741,28232.0,28231.0,0.002]
[1680642705059,0.17543741,28232.0,28231.0,0.002]
[1680642705536,0.17543741,28232.0,28229.0,0.432726]
[1680642705755,0.020373,28231.0,28229.0,0.432606]
[1680642706001,0.005313,28230.0,28224.0,0.36791675]
[1680642706257,0.01975,28229.0,28225.0,0.16998]
[1680642706472,0.16989976,28228.0,28225.0,0.16998]
[1680642706697,0.019811,28227.0,28225.0,0.16998]
[1680642706918,0.005313,28226.0,28225.0,0.16998]
[1680642707135,0.024683,28226.0,28225.0,0.16998]
[1680642707578,0.024683,28226.0,28225.0,0.17198]
[1680642707811,0.024683,28226.0,28225.0,0.16998]
[1680642708263,0.024683,28226.0,28224.0,0.40724753]
[1680642708504,0.005313,28226.0,28224.0,0.40724753]
[1680642708733,0.019942,28225.0,28224.0,0.40724753]
[1680642708982,0.021713,28225.0,28224.0,0.40724753]
[1680642709203,0.021713,28225.0,28223.0,0.19315]
[1680642709204,0.001771,28225.0,28223.0,0.19315]
[1680642709428,0.001771,28225.0,28223.0,0.56345899]
[1680642710308,0.001771,28225.0,28223.0,0.56545899]
[1680642711462,0.001771,28225.0,28223.0,0.56345899]
[1680642711679,0.001771,28225.0,28223.0,0.56545899]
[1680642712130,0.001771,28225.0,28223.0,0.39547899]
[1680642712589,0.14312081,28225.0,28223.0,0.39347899]
[1680642712843,0.020059,28224.0,28223.0,0.02299]
[1680642713061,0.02183,28224.0,28223.0,0.02299]
[1680642713978,0.02583,28224.0,28223.0,0.02299]
[1680642715322,0.02183,28224.0,28223.0,0.02299]
[1680642715765,0.02583,28224.0,28223.0,0.02399]
[1680642716646,0.005771,28224.0,28223.0,0.38147259]
[1680642716871,0.02545,28224.0,28223.0,0.38147259]
[1680642720396,0.023679,28224.0,28223.0,0.38147259]
[1680642720617,0.005771,28224.0,28223.0,0.38147259]
[1680642720839,0.024549,28224.0,28223.0,0.38147259]
[1680642721528,0.020549,28224.0,28223.0,0.38047259]
[1680642721755,0.001771,28224.0,28223.0,0.38247259]
[1680642722199,0.001771,28224.0,28223.0,0.38047259]
[1680642722423,0.022261,28224.0,28223.0,0.38047259]
[1680642722564,0.026261,28224.0,28223.0,0.38047259]
[1680642722797,0.022261,28224.0,28223.0,0.38047259]
[1680642722975,0.026261,28224.0,28223.0,0.38047259]
[1680642723402,0.026561,28224.0,28223.0,0.38047259]
[1680642724057,0.004,28224.0,28223.0,0.38047259]
[1680642724300,0.004,28224.0,28223.0,0.55045259]
[1680642724484,0.0005,28225.0,28223.0,0.38047259]
[1680642724695,0.004,28224.0,28223.0,0.19297]
[1680642724914,0.0005,28225.0,28223.0,0.19297]
[1680642725136,0.0005,28225.0,28223.0,0.22097]
[1680642725350,0.0005,28225.0,28224.0,0.39715651]
[1680642726057,0.0005,28225.0,28224.0,0.43618842]
[1680642726263,0.0005,28225.0,28224.0,0.39715651]
[1680642728811,0.0005,28225.0,28224.0,0.41215651]
[1680642729018,0.002271,28225.0,28224.0,0.39715651]
[1680642729222,0.006271,28225.0,28224.0,0.39715651]
[1680642730262,0.026554,28225.0,28224.0,0.39715651]
[1680642731054,0.0045,28225.0,28223.0,0.19315]
[1680642731283,0.0045,28225.0,28224.0,0.41424663]
[1680642731925,0.0005,28225.0,28224.0,0.41424663]
[1680642732144,0.0005,28225.0,28224.0,0.42224663]
[1680642734071,0.0005,28225.0,28224.0,0.42230663]
[1680642734274,0.0005,28225.0,28224.0,0.42224663]
[1680642735724,0.0005,28225.0,28224.0,0.79564663]
[1680642740840,0.00042863,28225.0,28224.0,0.79564663]
[1680642741959,0.00042863,28225.0,28224.0,0.78764663]
[1680642742212,0.00042863,28225.0,28224.0,0.78964663]
[1680642742938,0.00042863,28225.0,28224.0,0.78764663]
[1680642743156,0.00042863,28225.0,28224.0,0.78964663]
[1680642746947,0.00042863,28225.0,28224.0,0.78970663]
[1680642747404,0.00042863,28225.0,28224.0,0.78964663]
[1680642748828,0.00042863,28225.0,28224.0,0.78764663]
[1680642749046,0.00042863,28225.0,28224.0,0.78964663]
[1680642749796,0.00042863,28225.0,28224.0,0.41624663]
[1680642750022,0.00042863,28225.0,28224.0,0.002]
[1680642750228,0.00042863,28225.0,28224.0,0.43488101]
[1680642750437,0.00042863,28225.0,28224.0,0.47564601]
[1680642750636,0.00042863,28225.0,28224.0,0.80828101]
[1680642750858,0.00042863,28225.0,28224.0,0.80628101]
[1680642751070,0.00042863,28225.0,28224.0,0.72398466]
[1680642751281,0.00042863,28225.0,28224.0,0.80828101]
[1680642753131,0.00042863,28225.0,28224.0,0.84781901]
[1680642753819,0.00042863,28225.0,28224.0,0.84581901]
[1680642754054,0.00042863,28225.0,28224.0,0.84781901]
[1680642754276,0.00042863,28225.0,28224.0,0.80828101]
[1680642754717,0.00042863,28225.0,28224.0,0.84719801]
[1680642754976,0.00042863,28225.0,28224.0,0.80828101]
[1680642755864,0.00042863,28225.0,28224.0,0.43488101]
[1680642756105,0.00042863,28225.0,28224.0,0.80828101]
[1680642757235,0.00042863,28225.0,28224.0,0.43488101]
[1680642757704,0.00042863,28225.0,28224.0,0.80828101]
[1680642758435,0.00042863,28225.0,28224.0,0.80628101]
[1680642758654,0.00042863,28225.0,28224.0,0.80828101]
[1680642759879,0.00042863,28225.0,28224.0,0.80628101]
[1680642760107,0.00042863,28225.0,28224.0,0.80828101]
[1680642760312,0.00042863,28225.0,28224.0,0.43288101]
[1680642760881,0.00042863,28225.0,28224.0,0.43294101]
[1680642761261,0.00042863,28225.0,28224.0,0.43494101]
[1680642762894,0.00042863,28225.0,28224.0,1.00228191]
[1680642763121,8.63e-06,28225.0,28224.0,1.16616179]
[1680642764062,8.63e-06,28225.0,28224.0,1.16416179]
[1680642764274,8.63e-06,28225.0,28224.0,1.19216179]
[1680642764471,8.63e-06,28225.0,28224.0,1.16416179]
[1680642764724,8.63e-06,28225.0,28224.0,1.19216179]
[1680642764940,8.63e-06,28225.0,28224.0,1.16416179]
[1680642765174,8.63e-06,28225.0,28224.0,1.19216179]
[1680642765628,8.63e-06,28225.0,28224.0,1.16416179]
[1680642765848,8.63e-06,28225.0,28224.0,1.19216179]
[1680642766046,8.63e-06,28225.0,28224.0,1.16416179]
[1680642767034,8.63e-06,28225.0,28224.0,1.19216179]
[1680642767232,8.63e-06,28225.0,28224.0,1.33339138]
[1680642767450,8.63e-06,28225.0,28224.0,1.36139138]
[1680642767888,8.63e-06,28225.0,28224.0,1.12267915]
[1680642768111,8.63e-06,28225.0,28224.0,1.15067915]
[1680642768780,8.63e-06,28225.0,28224.0,1.12267915]
[1680642769003,8.63e-06,28225.0,28224.0,1.15067915]
[1680642769458,8.63e-06,28225.0,28224.0,1.36145138]
[1680642769778,8.63e-06,28225.0,28224.0,1.15073915]
[1680642770406,8.63e-06,28225.0,28224.0,1.12273915]
[1680642770496,8.63e-06,28225.0,28224.0,1.15073915]
[1680642770741,8.63e-06,28225.0,28224.0,1.12273915]
[1680642770969,8.63e-06,28225.0,28224.0,1.15067915]
[1680642771184,8.63e-06,28225.0,28224.0,1.12267915]
[1680642772244,8.63e-06,28225.0,28224.0,1.12273915]
[1680642772675,8.63e-06,28225.0,28224.0,1.12267915]
[1680642773624,8.63e-06,28225.0,28224.0,1.15067915]
[1680642774542,8.63e-06,28225.0,28224.0,0.50538971]
[1680642774756,8.63e-06,28225.0,28224.0,1.09305671]
[1680642774948,8.63e-06,28225.0,28224.0,1.06505671]
[1680642775642,8.63e-06,28225.0,28224.0,1.09305671]
[1680642775835,8.63e-06,28225.0,28224.0,1.06505671]
[1680642776379,8.63e-06,28225.0,28224.0,1.09305671]
[1680642776579,8.63e-06,28225.0,28224.0,1.06505671]
[1680642777233,8.63e-06,28225.0,28224.0,1.09305671]
[1680642777659,8.63e-06,28225.0,28224.0,1.31226894]
[1680642779110,8.63e-06,28225.0,28224.0,1.28426894]
[1680642779319,8.63e-06,28225.0,28224.0,1.31226894]
[1680642779533,8.63e-06,28225.0,28224.0,1.28426894]
[1680642779750,8.63e-06,28225.0,28224.0,1.31226894]
[1680642780185,8.63e-06,28225.0,28224.0,1.28426894]
[1680642780430,8.63e-06,28225.0,28224.0,1.31226894]
[1680642780861,8.63e-06,28225.0,28224.0,1.28426894]
[1680642781101,8.63e-06,28225.0,28224.0,1.31226894]
[1680642781552,8.63e-06,28225.0,28224.0,1.07534171]
[1680642781786,8.63e-06,28225.0,28224.0,1.07949529]
[1680642782011,8.63e-06,28225.0,28224.0,1.05149529]
[1680642782487,8.63e-06,28225.0,28224.0,1.09721029]
[1680642782932,8.63e-06,28225.0,28224.0,1.26631701]
[1680642783186,8.63e-06,28225.0,28224.0,1.23831701]
[1680642783422,8.63e-06,28225.0,28224.0,0.30911436]
[1680642783653,8.63e-06,28225.0,28224.0,0.16998]
[1680642783887,0.00177963,28225.0,28224.0,0.19798]
[1680642784119,8.63e-06,28225.0,28224.0,0.19798]
[1680642784344,0.00177963,28225.0,28224.0,0.19798]
[1680642784572,8.63e-06,28225.0,28224.0,0.028]
[1680642784795,0.00177963,28225.0,28224.0,0.028]
[1680642785261,0.00177963,28225.0,28223.0,0.19297]
[1680642785486,0.00177963,28225.0,28224.0,0.028]
[1680642785781,0.00177963,28225.0,28223.0,0.19297]
[1680642786250,0.00177963,28225.0,28224.0,0.008]
[1680642786480,0.00177963,28225.0,28223.0,0.19297]
[1680642786718,0.00207963,28225.0,28223.0,0.19397]
[1680642786936,0.00177963,28225.0,28223.0,0.19397]
[1680642787161,0.03257963,28225.0,28223.0,0.19397]
[1680642787388,0.03257963,28225.0,28223.0,0.19297]
[1680642787605,0.00207963,28225.0,28223.0,0.19297]
[1680642787827,0.00177963,28225.0,28223.0,0.19297]
[1680642788263,0.51961486,28225.0,28223.0,0.19297]
[1680642788494,0.20306175,28224.0,28223.0,0.02299]
[1680642788722,0.20867575,28224.0,28223.0,0.02399]
[1680642789903,0.20867575,28224.0,28223.0,0.02299]
[1680642790118,0.21067575,28224.0,28223.0,0.02299]
[1680642791064,0.56538631,28224.0,28223.0,0.02299]
[1680642792218,0.39465956,28224.0,28223.0,0.02299]
[1680642792454,0.56244664,28224.0,28223.0,0.02299]
[1680642793330,0.13154654,28223.0,28219.0,0.10078523]
[1680642793586,0.38756856,28222.0,28219.0,0.17004]
[1680642793813,0.35678156,28222.0,28219.0,0.17004]
[1680642794590,0.40616867,28222.0,28218.0,0.19321]
[1680642794827,0.030471,28221.0,28218.0,0.19303]
[1680642795050,0.18043074,28221.0,28219.0,0.022]
[1680642795904,0.18043074,28221.0,28219.0,0.42030996]
[1680642796625,0.18143074,28221.0,28219.0,0.42030996]
[1680642796773,0.18043074,28221.0,28219.0,0.42030996]
[1680642797791,0.18143074,28221.0,28219.0,0.44230996]
[1680642798836,0.18143074,28221.0,28219.0,0.42030996]
[1680642798837,0.18043074,28221.0,28219.0,0.42030996]
[1680642799048,0.18143074,28221.0,28219.0,0.42830996]
[1680642799888,0.001,28221.0,28219.0,0.158]
[1680642800316,0.001,28221.0,28219.0,0.61468426]
[1680642800538,0.001,28221.0,28220.0,0.3819989]
[1680642801451,0.17011713,28222.0,28220.0,0.3819989]
[1680642801643,0.17011713,28222.0,28220.0,0.3839989]
[1680642801895,0.17011713,28222.0,28220.0,0.3819989]
[1680642802110,0.004,28221.0,28220.0,0.3819989]
[1680642802573,0.17011713,28222.0,28220.0,0.3819989]
[1680642802812,0.17411713,28222.0,28220.0,0.3819989]
[1680642803036,0.0495692,28225.0,28221.0,0.026816]
[1680642803279,0.0492692,28225.0,28222.0,0.14189681]
[1680642803505,8.63e-06,28225.0,28223.0,0.15]